bitfinex/quotes_SOLUSD_20241218
["timestamp","ask_amount","ask_price","bid_price","bid_amount"]
[1734499689899,7.13874096,217.24,217.17,7.13874096]
[1734499690191,7.13874096,217.24,217.18,7.13874096]
[1734499690396,7.13874096,217.25,217.19,7.13874096]
[1734499690594,9.2043,217.29,217.21,7.13874096]
[1734499690897,7.13874096,217.28,217.21,7.13874096]
[1734499691102,9.2043,217.29,217.21,7.13874096]
[1734499691412,7.13874096,217.28,217.21,7.13874096]
[1734499692790,7.13874096,217.27,217.2,7.13874096]
[1734499695210,7.13874096,217.26,217.17,23.776884]
[1734499695410,7.13874096,217.26,217.2,7.13874096]
[1734499696602,7.13874096,217.25,217.19,7.13874096]
[1734499698010,9.2043,217.29,217.19,7.13874096]
[1734499698209,7.13874096,217.26,217.2,7.13874096]
[1734499698899,7.13874096,217.27,217.2,7.13874096]
[1734499699108,7.13874096,217.27,217.21,7.13874096]
[1734499699400,9.2043,217.29,217.21,9.25964096]
[1734499699401,7.13874096,217.28,217.21,9.25964096]
[1734499699596,7.13874096,217.29,217.22,7.13874096]
[1734499700022,7.13874096,217.29,217.21,2.1209]
[1734499700023,9.2025,217.33,217.26,7.13874096]
[1734499700213,7.13874096,217.36,217.29,7.13874096]
[1734499700694,9.2012,217.37,217.29,7.13874096]
[1734499700894,7.13874096,217.36,217.29,7.13874096]
[1734499701103,16.38367192,217.41,217.32,7.13874096]
[1734499701309,19.15261666,217.41,217.34,7.13874096]
[1734499701510,2.8146757,217.41,217.35,7.13874096]
[1734499701742,9.1978,217.45,217.35,7.13874096]
[1734499701944,9.1978,217.45,217.37,7.13874096]
[1734499702151,9.1978,217.45,217.38,6.3343]
[1734499702322,7.13874096,217.44,217.38,6.3343]
[1734499702534,9.1978,217.45,217.38,6.3343]
[1734499702847,9.92915,217.44,217.38,6.3343]
[1734499703052,9.1958,217.49,217.4,7.13874096]
[1734499703244,7.13874096,217.48,217.41,7.13874096]
[1734499703904,16.33454096,217.49,217.41,7.13874096]
[1734499704311,7.13874096,217.49,217.38,6.3343]
[1734499704918,2.7619974,217.48,217.41,9.25964096]
[1734499706031,9.90073836,217.48,217.41,9.25964096]
[1734499707007,7.13874096,217.46,217.38,6.3343]
[1734499707215,7.13874096,217.44,217.38,6.3343]
[1734499707414,7.13874096,217.43,217.38,6.3343]
[1734499708138,7.13874096,217.4,217.32,6.3343]
[1734499708331,7.13874096,217.39,217.32,13.47304096]
[1734499708918,7.13874096,217.4,217.33,7.13874096]
[1734499710558,7.13874096,217.38,217.32,6.3343]
[1734499710739,7.13874096,217.37,217.32,6.3343]
[1734499710926,9.1984,217.43,217.32,6.3343]
[1734499710927,20.0,217.4,217.32,13.47304096]
[1734499711252,7.13874096,217.38,217.32,6.3343]
[1734499711415,7.13874096,217.36,217.3,2.1209]
[1734499713018,7.13874096,217.36,217.29,7.13874096]
[1734499714330,29.2,217.4,217.3,7.13874096]
[1734499714524,7.13874096,217.37,217.3,7.13874096]
[1734499717548,29.2,217.4,217.3,7.13874096]
[1734499717756,29.2,217.4,217.33,7.13874096]
[1734499717975,36.33874096,217.4,217.33,7.13874096]
[1734499718275,7.13874096,217.39,217.32,7.13874096]
[1734499718884,7.13874096,217.37,217.3,7.13874096]
[1734499719032,7.13874096,217.38,217.31,7.13874096]
[1734499720066,7.13874096,217.37,217.3,7.13874096]
[1734499722256,7.13874096,217.36,217.27,6.3343]
[1734499722451,7.13874096,217.37,217.3,7.13874096]
[1734499722766,7.13874096,217.36,217.29,7.13874096]
[1734499723343,7.13874096,217.37,217.3,7.13874096]
[1734499723545,16.33974096,217.37,217.27,6.3343]
[1734499723745,16.33974096,217.37,217.3,7.13874096]
[1734499725061,9.201,217.37,217.3,7.13874096]
[1734499725265,16.33974096,217.37,217.3,7.13874096]
[1734499725445,7.13874096,217.36,217.3,7.13874096]
[1734499726372,7.13874096,217.36,217.27,6.3343]
[1734499726573,7.13874096,217.36,217.29,7.13874096]
[1734499728348,7.13874096,217.36,217.27,6.3343]
[1734499728564,7.13874096,217.36,217.29,7.13874096]
[1734499728761,7.13874096,217.32,217.27,6.3343]
[1734499728959,7.13874096,217.32,217.26,7.13874096]
[1734499729169,7.13874096,217.31,217.25,9.38884096]
[1734499729469,7.13874096,217.31,217.25,2.2501]
[1734499729676,7.13874096,217.31,217.22,6.2072]
[1734499729978,42.33496384,217.36,217.22,13.34594096]
[1734499729979,7.13874096,217.29,217.22,13.34594096]
[1734499730558,7.13874096,217.29,217.22,6.2072]
[1734499730775,7.13874096,217.28,217.22,13.34594096]
[1734499731068,7.13874096,217.28,217.15,0.69048086]
[1734499731069,7.13874096,217.27,217.15,6.89768086]
[1734499731285,9.2041,217.3,217.15,6.89768086]
[1734499731286,7.13874096,217.25,217.15,6.89768086]
[1734499731580,7.13874096,217.25,217.19,7.13874096]
[1734499731752,7.13874096,217.25,217.15,6.89768086]
[1734499732161,11.2722,217.3,217.15,6.89768086]
[1734499732162,7.13874096,217.26,217.2,7.13874096]
[1734499734060,2.70287847,217.29,217.21,7.13874096]
[1734499734387,2.70287847,217.29,217.23,7.13874096]
[1734499734753,16.34284096,217.3,217.24,7.13874096]
[1734499734961,27.13874096,217.31,217.25,7.13874096]
[1734499735154,20.0,217.31,217.25,7.13874096]
[1734499735379,9.2008,217.38,217.24,2.2648]
[1734499735563,7.13874096,217.36,217.3,7.13874096]
[1734499736268,7.13874096,217.36,217.29,7.13874096]
[1734499737582,7.13874096,217.35,217.28,7.13874096]
[1734499739303,9.2008,217.38,217.29,7.13874096]
[1734499739470,7.13874096,217.36,217.3,7.13874096]
[1734499739792,7.13874096,217.36,217.25,6.89746392]
[1734499739793,7.13874096,217.35,217.29,7.13874096]
[1734499741571,7.13874096,217.34,217.28,7.13874096]
[1734499741885,7.13874096,217.31,217.25,6.2072]
[1734499742089,7.13874096,217.3,217.25,6.2072]
[1734499742308,7.13874096,217.31,217.25,6.2072]
[1734499743486,7.13874096,217.3,217.25,6.2072]
[1734499743671,7.13874096,217.31,217.25,6.2072]
[1734499747206,7.13874096,217.31,217.25,13.34594096]
[1734499747919,7.13874096,217.3,217.25,6.2072]
[1734499749002,20.0,217.34,217.29,7.13874096]
[1734499749205,20.0,217.34,217.28,7.13874096]
[1734499749852,9.2009,217.37,217.29,7.13874096]
[1734499749990,7.13874096,217.36,217.29,7.13874096]
[1734499751509,7.13874096,217.35,217.28,7.13874096]
[1734499751712,7.13874096,217.35,217.26,23.776884]
[1734499751899,7.13874096,217.35,217.28,7.13874096]
[1734499753623,9.1992,217.41,217.33,7.13874096]
[1734499753932,9.1992,217.41,217.28,0.69024973]
[1734499753933,7.13874096,217.41,217.34,7.13874096]
[1734499755216,9.84637585,217.41,217.34,7.13874096]
[1734499756657,20.0,217.42,217.36,7.13874096]
[1734499756866,27.13874096,217.42,217.35,13.70664096]
[1734499757077,7.13874096,217.39,217.35,6.5679]
[1734499757379,20.0,217.42,217.35,6.5679]
[1734499757380,7.13874096,217.4,217.35,6.5679]
[1734499757531,7.13874096,217.41,217.35,6.5679]
[1734499758148,7.13874096,217.4,217.35,6.5679]
[1734499759631,7.13874096,217.39,217.31,7.13874096]
[1734499759849,7.13874096,217.38,217.31,7.13874096]
[1734499760052,7.13874096,217.37,217.3,7.13874096]
[1734499760229,7.13874096,217.36,217.29,15.32284096]
[1734499760834,7.13874096,217.37,217.3,7.13874096]
[1734499762674,9.1992,217.41,217.3,7.13874096]
[1734499762979,7.13874096,217.39,217.32,7.13874096]
[1734499763179,7.13874096,217.38,217.31,7.13874096]
[1734499764669,7.13874096,217.37,217.3,7.13874096]
[1734499764895,7.13874096,217.35,217.29,8.1841]
[1734499765376,7.13874096,217.36,217.29,15.32284096]
[1734499768667,7.13874096,217.37,217.3,7.13874096]
[1734499769000,7.13874096,217.36,217.29,15.32284096]
[1734499770087,7.13874096,217.34,217.24,6.92314514]
[1734499770273,7.13874096,217.32,217.24,6.92314514]
[1734499770472,7.13874096,217.32,217.26,7.13874096]
[1734499771795,7.13874096,217.32,217.25,7.13874096]
[1734499772381,7.13874096,217.31,217.25,7.13874096]
[1734499773396,7.13874096,217.32,217.25,7.13874096]
[1734499773612,7.13874096,217.31,217.25,7.13874096]
[1734499774908,9.2018,217.35,217.25,7.13874096]
[1734499775078,7.13874096,217.32,217.26,7.13874096]
[1734499775277,7.13874096,217.32,217.25,7.13874096]
[1734499776102,7.13874096,217.31,217.24,6.2329]
[1734499776321,7.13874096,217.31,217.25,7.13874096]
[1734499777617,9.2018,217.35,217.26,7.13874096]
[1734499777787,7.13874096,217.33,217.27,7.13874096]
[1734499778997,7.13874096,217.34,217.27,7.13874096]
[1734499779395,7.18447192,217.39,217.3,7.13874096]
[1734499779396,9.2002,217.39,217.3,7.13874096]
[1734499779709,7.13874096,217.36,217.3,7.13874096]
[1734499780493,7.13874096,217.36,217.24,6.92327761]
[1734499780807,7.13874096,217.36,217.3,7.13874096]
[1734499781313,7.13874096,217.36,217.29,7.13874096]
[1734499781615,9.2002,217.39,217.29,7.13874096]
[1734499781825,7.13874096,217.36,217.29,7.13874096]
[1734499784211,9.2002,217.39,217.29,7.13874096]
[1734499784528,7.13874096,217.37,217.3,7.13874096]
[1734499786313,9.1986,217.43,217.32,2.1277]
[1734499786509,7.13874096,217.4,217.33,7.13874096]
[1734499788205,9.1986,217.43,217.33,7.13874096]
[1734499788441,7.13874096,217.4,217.33,7.13874096]
[1734499789432,7.13874096,217.39,217.33,7.13874096]
[1734499789643,7.13874096,217.4,217.33,7.13874096]
[1734499790630,7.13874096,217.39,217.32,2.1277]
[1734499790826,7.13874096,217.39,217.32,9.26644096]
[1734499791327,9.1986,217.43,217.32,9.26644096]
[1734499791531,7.13874096,217.39,217.32,9.26644096]
[1734499792333,7.13874096,217.39,217.32,2.1277]
[1734499792525,7.13874096,217.39,217.32,9.26644096]
[1734499794209,7.13874096,217.38,217.32,9.26644096]
[1734499795329,9.1986,217.43,217.32,9.26644096]
[1734499795525,7.13874096,217.38,217.32,9.26644096]
[1734499795932,9.1986,217.43,217.32,9.26644096]
[1734499796247,7.13874096,217.39,217.32,9.26644096]
[1734499796622,7.13874096,217.38,217.32,9.26644096]
[1734499797026,9.1986,217.43,217.32,9.26644096]
[1734499797222,7.13874096,217.38,217.32,9.26644096]
[1734499798539,16.38307192,217.43,217.32,9.26644096]
[1734499798710,16.38307192,217.43,217.33,7.13874096]
[1734499798915,7.13874096,217.39,217.32,9.26644096]
[1734499799123,7.13874096,217.38,217.32,9.26644096]
[1734499800516,7.13874096,217.35,217.26,5.37256419]
[1734499800715,20.0,217.37,217.27,7.13874096]
[1734499800928,20.0,217.37,217.26,2.0814]
[1734499800929,7.13874096,217.33,217.26,2.0814]
[1734499801115,7.13874096,217.33,217.27,7.13874096]
[1734499801729,7.13874096,217.34,217.28,7.13874096]
[1734499801934,7.13874096,217.35,217.29,7.13874096]
[1734499802245,9.2012,217.37,217.29,7.13874096]
[1734499802452,7.13874096,217.35,217.26,2.0814]
[1734499802616,7.13874096,217.34,217.26,2.0814]
[1734499802955,7.13874096,217.33,217.27,7.13874096]
[1734499803730,7.13874096,217.31,217.26,2.0814]
[1734499804363,7.13874096,217.31,217.25,7.13874096]
[1734499804521,7.13874096,217.3,217.24,6.2329]
[1734499804845,7.13874096,217.29,217.24,6.2329]
[1734499805337,9.2026,217.33,217.24,6.2329]
[1734499805546,7.13874096,217.3,217.24,6.2329]
[1734499805711,7.13874096,217.3,217.24,13.37164096]
[1734499806260,9.2026,217.33,217.24,6.2329]
[1734499806478,7.13874096,217.3,217.24,13.37164096]
[1734499807535,9.2026,217.33,217.27,7.13874096]
[1734499807735,20.0,217.34,217.27,7.13874096]
[1734499808055,27.13874096,217.34,217.27,7.13874096]
[1734499808942,20.0,217.34,217.27,7.13874096]
[1734499809142,27.13874096,217.34,217.27,7.13874096]
[1734499809867,7.13874096,217.33,217.26,7.13874096]
[1734499810067,11.4405,217.37,217.28,7.13874096]
[1734499810068,9.2012,217.37,217.28,7.13874096]
[1734499810266,7.13874096,217.37,217.31,7.13874096]
[1734499810443,7.13874096,217.38,217.31,7.13874096]
[1734499810831,7.13874096,217.37,217.31,7.13874096]
[1734499811036,16.38397192,217.41,217.29,7.13874096]
[1734499811461,16.38397192,217.41,217.3,7.13874096]
[1734499811668,7.13874096,217.36,217.3,7.13874096]
[1734499813036,7.13874096,217.38,217.31,7.13874096]
[1734499813669,7.13874096,217.38,217.32,7.13874096]
[1734499814057,7.13874096,217.38,217.27,24.46708642]
[1734499814058,7.13874096,217.38,217.31,7.13874096]
[1734499815171,9.1995,217.41,217.32,7.13874096]
[1734499815356,7.13874096,217.4,217.33,7.13874096]
[1734499815565,7.13874096,217.39,217.33,7.13874096]
[1734499815947,7.13874096,217.39,217.32,7.13874096]
[1734499816772,7.13874096,217.39,217.33,7.13874096]
[1734499818150,9.1995,217.41,217.34,7.13874096]
[1734499818349,16.33824096,217.41,217.34,7.13874096]
[1734499818954,7.13874096,217.4,217.33,13.40104096]
[1734499819161,9.1995,217.41,217.33,6.2623]
[1734499819162,7.13874096,217.38,217.33,6.2623]
[1734499820464,9.1995,217.41,217.33,6.2623]
[1734499820671,7.13874096,217.38,217.33,6.2623]
[1734499821561,9.1995,217.41,217.29,2.1661]
[1734499821562,7.13874096,217.35,217.29,2.1661]
[1734499821955,9.1995,217.41,217.3,7.13874096]
[1734499822159,7.13874096,217.39,217.32,7.13874096]
[1734499822362,7.13874096,217.39,217.33,7.13874096]
[1734499822777,7.13874096,217.4,217.31,0.69015334]
[1734499822989,7.13874096,217.39,217.31,0.69015334]
[1734499823300,7.13874096,217.39,217.32,7.13874096]
[1734499823659,7.13874096,217.39,217.33,7.13874096]
[1734499824269,7.13874096,217.39,217.32,7.13874096]
[1734499825391,7.13874096,217.39,217.33,7.13874096]
[1734499825563,7.13874096,217.39,217.31,0.69015334]
[1734499825759,7.13874096,217.37,217.29,2.85619734]
[1734499825965,7.13874096,217.37,217.31,7.13874096]
[1734499826162,7.13874096,217.38,217.31,7.13874096]
[1734499826357,7.13874096,217.39,217.32,7.13874096]
[1734499828806,7.13874096,217.38,217.31,7.13874096]
[1734499829397,7.13874096,217.36,217.29,2.1661]
[1734499829576,7.13874096,217.34,217.29,2.1661]
[1734499831694,7.13874096,217.32,217.27,6.2623]
[1734499831905,7.13874096,217.31,217.27,6.2623]
[1734499832286,20.0,217.35,217.27,6.2623]
[1734499832477,7.18447192,217.38,217.28,7.13874096]
[1734499832689,7.13874096,217.34,217.28,7.13874096]
[1734499833509,7.13874096,217.35,217.28,7.13874096]
[1734499835003,7.13874096,217.36,217.3,7.13874096]
[1734499835186,9.1996,217.4,217.32,7.13874096]
[1734499835593,7.13874096,217.38,217.32,7.13874096]
[1734499836523,16.38267192,217.44,217.34,7.13874096]
[1734499836825,7.13874096,217.4,217.34,7.13874096]
[1734499837002,7.13874096,217.42,217.35,7.13874096]
[1734499838012,9.1982,217.44,217.36,13.70024096]
[1734499838211,16.33694096,217.44,217.36,13.70024096]
[1734499838614,7.13874096,217.43,217.36,13.70024096]
[1734499838809,7.13874096,217.42,217.36,6.5615]
[1734499839011,7.13874096,217.41,217.36,6.5615]
[1734499839799,7.13874096,217.42,217.36,6.5615]
[1734499841257,7.13874096,217.41,217.36,6.5615]
[1734499841400,7.13874096,217.39,217.31,8.6864]
[1734499841603,7.13874096,217.38,217.31,9.37648199]
[1734499841901,7.13874096,217.39,217.32,7.13874096]
[1734499842225,7.13874096,217.39,217.33,7.13874096]
[1734499842524,7.13874096,217.39,217.32,7.13874096]
[1734499842930,9.1982,217.44,217.31,15.82514096]
[1734499842931,7.13874096,217.38,217.31,15.82514096]
[1734499843502,7.13874096,217.39,217.32,7.13874096]
[1734499844432,7.13874096,217.38,217.31,15.82514096]
[1734499846039,7.13874096,217.39,217.32,7.13874096]
[1734499847024,9.1987,217.42,217.31,15.82514096]
[1734499847225,7.13874096,217.38,217.31,15.82514096]
[1734499848341,7.13874096,217.37,217.31,15.82514096]
[1734499848915,7.13874096,217.37,217.31,8.6864]
[1734499849129,7.13874096,217.34,217.27,7.13874096]
[1734499851030,7.13874096,217.33,217.27,7.13874096]
[1734499853853,7.13874096,217.32,217.26,15.80014096]
[1734499854052,7.18447192,217.4,217.23,2.59565234]
[1734499854053,7.13874096,217.28,217.23,2.59565234]
[1734499854356,7.13874096,217.28,217.22,7.13874096]
[1734499856386,7.13874096,217.29,217.23,7.13874096]
[1734499857371,7.13874096,217.28,217.22,7.13874096]
[1734499861366,7.13874096,217.29,217.22,7.13874096]
[1734499861563,7.13874096,217.29,217.23,7.13874096]
[1734499862755,7.13874096,217.28,217.22,7.13874096]
[1734499863065,9.203,217.32,217.21,7.13874096]
[1734499863066,7.13874096,217.27,217.21,7.13874096]
[1734499863268,7.13874096,217.28,217.22,7.13874096]
[1734499863672,7.13874096,217.27,217.2,8.6614]
[1734499863870,7.13874096,217.27,217.21,7.13874096]
[1734499865746,7.13874096,217.24,217.15,10.97671787]
[1734499865972,7.13874096,217.24,217.18,7.13874096]
[1734499866166,7.13874096,217.25,217.19,7.13874096]
[1734499866773,9.2048,217.28,217.2,7.13874096]
[1734499866953,7.13874096,217.25,217.2,7.13874096]
[1734499867676,7.13874096,217.25,217.15,9.07638465]
[1734499867862,7.13874096,217.25,217.19,7.13874096]
[1734499868057,9.2048,217.28,217.15,8.3858]
[1734499868268,7.13874096,217.23,217.15,8.3858]
[1734499868455,7.13874096,217.21,217.15,8.3858]
[1734499868657,7.13874096,217.2,217.15,6.2591]
[1734499869066,7.13874096,217.19,217.13,7.13874096]
[1734499869274,7.13874096,217.18,217.13,7.13874096]
[1734499869778,7.13874096,217.18,217.12,7.13874096]
[1734499870190,7.13874096,217.17,217.1,8.3858]
[1734499870358,7.13874096,217.15,217.1,8.3858]
[1734499870675,7.13874096,217.14,217.08,7.70728416]
[1734499870899,20.0,217.19,217.1,7.13874096]
[1734499871192,9.34627192,217.28,217.15,7.13874096]
[1734499871357,7.13874096,217.22,217.11,0.69081959]
[1734499871674,7.13874096,217.21,217.15,7.13874096]
[1734499873085,7.13874096,217.2,217.14,7.13874096]
[1734499874480,7.13874096,217.21,217.14,7.13874096]
[1734499875577,7.13874096,217.21,217.11,0.69068851]
[1734499875776,7.13874096,217.21,217.14,7.13874096]
[1734499877063,7.13874096,217.21,217.11,0.69068851]
[1734499877260,9.2057,217.26,217.13,7.13874096]
[1734499877487,7.13874096,217.21,217.11,0.69068851]
[1734499877673,7.13874096,217.2,217.14,7.13874096]
[1734499877864,7.13874096,217.19,217.12,7.13874096]
[1734499878057,7.13874096,217.15,217.09,7.13874096]
[1734499878289,7.13874096,217.15,217.08,0.5685432]
[1734499878592,7.13874096,217.15,217.08,7.70728416]
[1734499878882,7.13874096,217.14,217.08,0.5685432]
[1734499880704,7.13874096,217.12,217.08,0.5685432]
[1734499880987,7.13874096,217.1,217.08,0.5685432]
[1734499881404,9.209,217.18,217.08,0.5685432]
[1734499881606,7.13874096,217.09,217.08,0.5685432]
[1734499885723,20.0,217.15,217.08,0.5685432]
[1734499885883,7.13874096,217.09,217.08,0.5685432]
[1734499886089,20.0,217.14,217.08,0.5685432]
[1734499886290,7.13874096,217.11,217.08,0.5685432]
[1734499886503,7.13874096,217.1,217.08,0.5685432]
[1734499887425,7.13874096,217.09,217.08,0.5685432]
[1734499889295,7.13874096,217.1,217.08,0.5685432]
[1734499889518,7.13874096,217.09,217.08,0.5685432]
[1734499901733,30.91562496,217.09,217.08,4.32e-05]
[1734499902106,7.13874096,217.09,217.08,4.32e-05]
[1734499902412,27.1772,217.18,217.08,4.32e-05]
[1734499902607,7.13874096,217.12,217.08,4.32e-05]
[1734499903039,7.13874096,217.11,217.08,4.32e-05]
[1734499905735,7.13874096,217.1,217.08,4.32e-05]
[1734499906928,7.13874096,217.11,217.08,4.32e-05]
[1734499908128,9.2101,217.16,217.08,4.32e-05]
[1734499908331,7.13874096,217.12,217.08,4.32e-05]
[1734499908638,7.13874096,217.14,217.08,4.32e-05]
[1734499908824,7.13874096,217.15,217.08,4.32e-05]
[1734499909033,7.13874096,217.14,217.08,2.1581432]
[1734499909212,7.13874096,217.13,217.08,2.1581432]
[1734499909412,7.13874096,217.14,217.08,2.1581432]
[1734499910036,7.13874096,217.13,217.08,2.1581432]
[1734499910234,7.13874096,217.12,217.08,4.32e-05]
[1734499911821,7.13874096,217.13,217.08,4.32e-05]
[1734499912616,20.0,217.09,217.08,4.32e-05]
[1734499912821,27.13874096,217.09,217.08,4.32e-05]
[1734499913123,7.13874096,217.09,217.08,4.32e-05]
[1734499918066,9.2108,217.14,217.08,4.32e-05]
[1734499918358,20.0,217.15,217.08,4.32e-05]
[1734499918549,7.13874096,217.12,217.08,4.32e-05]
[1734499919859,7.13874096,217.13,217.08,4.32e-05]
[1734499920367,9.2075,217.22,217.1,7.13874096]
[1734499920522,7.13874096,217.15,217.09,8.4065]
[1734499920863,7.13874096,217.11,217.09,8.4065]
[1734499921023,7.13874096,217.13,217.09,8.4065]
[1734499921226,2.77879206,217.21,217.09,9.09733212]
[1734499921462,7.13874096,217.15,217.09,9.09733212]
[1734499921752,7.13874096,217.15,217.09,8.4065]
[1734499924069,7.13874096,217.12,217.09,8.4065]
[1734499924467,9.2081,217.2,217.09,8.4065]
[1734499924468,7.13874096,217.14,217.09,8.4065]
[1734499925541,7.13874096,217.13,217.09,8.4065]
[1734499926372,7.13874096,217.1,217.08,4.32e-05]
[1734499926583,9.2094,217.17,217.08,4.32e-05]
[1734499926876,11.98669206,217.21,217.08,4.32e-05]
[1734499927033,11.98669206,217.21,217.09,7.82955332]
[1734499927232,7.13874096,217.16,217.09,0.69081236]
[1734499927444,7.13874096,217.15,217.08,4.32e-05]
[1734499928048,7.13874096,217.15,217.08,7.13878416]
[1734499928266,7.13874096,217.15,217.09,0.69078087]
[1734499928474,7.13874096,217.15,217.08,7.82959077]
[1734499928878,20.0,217.2,217.11,7.13874096]
[1734499929051,7.13874096,217.18,217.12,0.69066856]
[1734499929258,7.13874096,217.18,217.11,7.82945886]
[1734499929437,7.13874096,217.17,217.11,0.6907179]
[1734499930959,7.13874096,217.14,217.09,8.1978]
[1734499931155,7.13874096,217.13,217.09,8.1978]
[1734499932084,20.0,217.2,217.09,8.1978]
[1734499932085,7.13874096,217.12,217.09,8.1978]
[1734499932283,7.13874096,217.13,217.09,8.1978]
[1734499933658,7.13874096,217.13,217.08,4.32e-05]
[1734499933864,7.13874096,217.12,217.08,4.32e-05]
[1734499934263,9.2085,217.19,217.08,4.32e-05]
[1734499934264,7.13874096,217.11,217.08,4.32e-05]
[1734499935442,7.13874096,217.1,217.08,4.32e-05]
[1734499937385,7.13874096,217.12,217.08,4.32e-05]
[1734499937546,7.13874096,217.11,217.08,4.32e-05]
[1734499937771,7.13874096,217.09,217.08,4.32e-05]
[1734499938179,7.13874096,217.1,217.08,4.32e-05]
[1734499938900,7.13874096,217.11,217.08,4.32e-05]
[1734499941123,20.0,217.16,217.08,4.32e-05]
[1734499941274,7.13874096,217.14,217.08,4.32e-05]
[1734499941819,7.13874096,217.13,217.08,4.32e-05]
[1734499942121,20.0,217.16,217.08,7.13878416]
[1734499942292,27.13874096,217.16,217.09,7.13874096]
[1734499942493,7.13874096,217.16,217.09,7.13874096]
[1734499943007,7.13874096,217.15,217.08,7.82965794]
[1734499943516,25.59897192,217.23,217.08,7.82965794]
[1734499943517,9.2068,217.23,217.1,7.13874096]
[1734499943682,7.13874096,217.18,217.11,0.69072232]
[1734499944416,7.13874096,217.18,217.11,7.82946328]
[1734499945435,9.2068,217.23,217.14,7.13874096]
[1734499945743,7.13874096,217.21,217.14,7.13874096]
[1734499945939,20.0,217.24,217.15,7.8293803]
[1734499946098,7.13874096,217.22,217.15,7.13874096]
[1734499946639,9.2054,217.27,217.15,7.13874096]
[1734499946795,9.2054,217.27,217.16,7.13874096]
[1734499946995,7.13874096,217.23,217.16,7.13874096]
[1734499947196,7.13874096,217.24,217.17,7.13874096]
[1734499947842,7.18447192,217.29,217.18,7.13874096]
[1734499947996,7.13874096,217.27,217.19,7.82919521]
[1734499948200,7.13874096,217.27,217.2,6.2854]
[1734499948433,7.13874096,217.26,217.2,6.2854]
[1734499948798,7.13874096,217.27,217.2,6.2854]
[1734499949908,7.13874096,217.26,217.2,6.2854]
[1734499950240,7.13874096,217.27,217.2,14.1145815]
[1734499950426,56.32643576,217.36,217.2,14.1145815]
[1734499950427,7.13874096,217.28,217.21,7.13874096]
[1734499950735,7.13874096,217.29,217.22,7.82911451]
[1734499951296,7.13874096,217.28,217.22,0.69037355]
[1734499951497,7.13874096,217.24,217.2,6.2854]
[1734499951698,9.2032,217.32,217.2,13.42414096]
[1734499951934,7.13874096,217.29,217.21,7.82919368]
[1734499952716,7.13874096,217.29,217.22,7.13874096]
[1734499952947,7.13874096,217.29,217.21,7.82919368]
[1734499953137,7.13874096,217.28,217.21,7.82919368]
[1734499953370,7.13874096,217.27,217.2,13.42414096]
[1734499953643,7.13874096,217.27,217.2,6.2854]
[1734499954532,7.13874096,217.26,217.2,6.2854]
[1734499954728,7.13874096,217.25,217.2,6.2854]
[1734499956215,7.13874096,217.24,217.2,6.2854]
[1734499956745,7.13874096,217.25,217.2,6.2854]
[1734499957917,7.13874096,217.26,217.2,6.2854]
[1734499959127,20.0,217.28,217.2,13.42414096]
[1734499959346,7.13874096,217.27,217.2,13.42414096]
[1734499959964,9.2032,217.32,217.22,7.13874096]
[1734499960124,20.0,217.29,217.23,7.13874096]
[1734499960330,2.7583601,217.33,217.23,7.13874096]
[1734499960331,7.13874096,217.31,217.23,7.13874096]
[1734499960742,7.13874096,217.3,217.23,7.13874096]
[1734499961037,7.13874096,217.3,217.21,0.69046982]
[1734499961038,7.13874096,217.29,217.22,7.13874096]
[1734499961837,7.13874096,217.3,217.23,7.13874096]
[1734499962432,7.13874096,217.29,217.22,7.13874096]
[1734499962747,7.13874096,217.28,217.21,7.13874096]
[1734499963471,23.776884,217.32,217.2,13.42414096]
[1734499963634,7.13874096,217.28,217.21,7.13874096]
[1734499963828,7.13874096,217.29,217.22,7.13874096]
[1734499964029,7.13874096,217.3,217.23,7.13874096]
[1734499965347,7.13874096,217.3,217.21,0.69038878]
[1734499965549,7.13874096,217.29,217.22,7.13874096]
[1734499967164,7.13874096,217.3,217.21,0.69038878]
[1734499967371,7.13874096,217.3,217.22,7.13874096]
[1734499968168,7.13874096,217.3,217.23,7.13874096]
[1734499969141,9.2027,217.33,217.23,7.13874096]
[1734499969350,7.13874096,217.29,217.22,7.13874096]
[1734499971168,7.13874096,217.26,217.2,6.2854]
[1734499972590,7.13874096,217.25,217.2,6.2854]
[1734499972744,7.13874096,217.25,217.19,2.0671]
[1734499973284,7.13874096,217.23,217.15,6.4709]
[1734499973447,7.13874096,217.23,217.16,7.13874096]
[1734499973649,20.0,217.27,217.19,7.13874096]
[1734499973877,7.13874096,217.26,217.19,7.13874096]
[1734499974187,20.0,217.28,217.2,7.13874096]
[1734499974341,7.13874096,217.27,217.2,7.13874096]
[1734499974983,7.13874096,217.26,217.19,7.13874096]
[1734499976058,7.13874096,217.27,217.2,7.13874096]
[1734499977179,7.13874096,217.26,217.19,7.13874096]
[1734499980762,7.87539311,217.26,217.15,0.69050129]
[1734499980978,7.13874096,217.21,217.11,0.69054834]
[1734499981181,7.13874096,217.17,217.09,0.69065236]
[1734499981362,7.13874096,217.17,217.1,7.13874096]